[Event "Late-Titled-Tuesday-Blitz-July-09-2024"]
[Site "Chess.com"]
[Date "2024.07.09"]
[Round "1"]
[White "HATilay"]
[Black "lluiss"]
[Result "0-1"]
[WhiteElo "2565"]
[BlackElo "2217"]
[TimeControl "180+1"]
[EndTime "14:08:28 PDT"]
[Termination "lluiss won by checkmate"]

1. e4 {[%clk 0:03:00.9]} 1... c5 {[%clk 0:02:55.9]} 2. Nf3 {[%clk 0:02:49.6]}
2... d6 {[%clk 0:02:55.4]} 3. d4 {[%clk 0:02:45.6]} 3... cxd4 {[%clk 0:02:53.7]}
4. Nxd4 {[%clk 0:02:46.5]} 4... Nf6 {[%clk 0:02:53.7]} 5. Nc3 {[%clk 0:02:46.8]}
5... g6 {[%clk 0:02:53.3]} 6. Be3 {[%clk 0:02:45.6]} 6... Bg7 {[%clk 0:02:53.3]}
7. f3 {[%clk 0:02:45.8]} 7... O-O {[%clk 0:02:53.3]} 8. Qd2 {[%clk 0:02:45.7]}
8... Nc6 {[%clk 0:02:53.2]} 9. O-O-O {[%clk 0:02:45.7]} 9... Nxd4 {[%clk
0:02:53.3]} 10. Bxd4 {[%clk 0:02:45.8]} 10... Be6 {[%clk 0:02:53.3]} 11. Nd5
{[%clk 0:02:44.7]} 11... Bxd5 {[%clk 0:02:35.4]} 12. exd5 {[%clk 0:02:44.7]}
12... Qc7 {[%clk 0:02:35.5]} 13. Kb1 {[%clk 0:02:41.6]} 13... Rac8 {[%clk
0:02:05.8]} 14. Rc1 {[%clk 0:02:38.2]} 14... a6 {[%clk 0:02:05.8]} 15. h4 {[%clk
0:02:37.7]} 15... e5 {[%clk 0:01:57.7]} 16. dxe6 {[%clk 0:02:37.2]} 16... fxe6
{[%clk 0:01:57.6]} 17. g4 {[%clk 0:02:36.9]} 17... Nd5 {[%clk 0:01:40.3]} 18.
Bxg7 {[%clk 0:02:36]} 18... Kxg7 {[%clk 0:01:41.2]} 19. c4 {[%clk 0:02:36]}
19... Nf4 {[%clk 0:01:37.6]} 20. h5 {[%clk 0:02:35.6]} 20... Qc5 {[%clk
0:01:25]} 21. Rh2 {[%clk 0:02:06.9]} 21... e5 {[%clk 0:01:24.3]} 22. hxg6 {[%clk
0:01:54.6]} 22... hxg6 {[%clk 0:01:23.1]} 23. g5 {[%clk 0:01:55.3]} 23... Rh8
{[%clk 0:01:21.6]} 24. Rh6 {[%clk 0:01:52.4]} 24... Rxh6 {[%clk 0:01:16.5]} 25.
gxh6+ {[%clk 0:01:53.3]} 25... Kxh6 {[%clk 0:01:16.8]} 26. Bd3 {[%clk 0:01:53]}
26... Kg7 {[%clk 0:01:13.6]} 27. Be4 {[%clk 0:01:52.6]} 27... b5 {[%clk
0:01:08.8]} 28. Qh2 {[%clk 0:01:47.2]} 28... Rh8 {[%clk 0:01:07.7]} 29. Qg3
{[%clk 0:01:46.4]} 29... bxc4 {[%clk 0:00:58.8]} 30. Qg5 {[%clk 0:01:46.2]}
30... Qc7 {[%clk 0:00:36.7]} 31. Rg1 {[%clk 0:00:53.2]} 31... Rh6 {[%clk
0:00:35.4]} 32. Bc2 {[%clk 0:00:43.2]} 32... Nh3 {[%clk 0:00:32.1]} 33. Qg3
{[%clk 0:00:41.1]} 33... Nxg1 {[%clk 0:00:31.5]} 34. Qxg1 {[%clk 0:00:42]} 34...
Qf7 {[%clk 0:00:28.9]} 35. Qd1 {[%clk 0:00:37.7]} 35... d5 {[%clk 0:00:26.9]}
36. a3 {[%clk 0:00:36]} 36... d4 {[%clk 0:00:18.9]} 37. Be4 {[%clk 0:00:34.7]}
37... c3 {[%clk 0:00:19]} 38. bxc3 {[%clk 0:00:34]} 38... dxc3 {[%clk
0:00:18.3]} 39. Qc2 {[%clk 0:00:30.5]} 39... Qc7 {[%clk 0:00:17.4]} 40. f4
{[%clk 0:00:15]} 40... Qb6+ {[%clk 0:00:16.8]} 41. Ka2 {[%clk 0:00:13.5]} 41...
Qb2+ {[%clk 0:00:10.2]} 42. Qxb2 {[%clk 0:00:13.6]} 42... cxb2 {[%clk
0:00:10.5]} 43. fxe5 {[%clk 0:00:14.5]} 43... Rh2 {[%clk 0:00:10.6]} 44. e6
{[%clk 0:00:13.8]} 44... g5 {[%clk 0:00:08.5]} 45. Bd3 {[%clk 0:00:07.8]} 45...
a5 {[%clk 0:00:07.5]} 46. Bf5 {[%clk 0:00:06.1]} 46... Kf6 {[%clk 0:00:07.2]}
47. Bg4 {[%clk 0:00:06.7]} 47... Rg2 {[%clk 0:00:07.4]} 48. Bf3 {[%clk
0:00:06.2]} 48... Rf2 {[%clk 0:00:07.1]} 49. Bg4 {[%clk 0:00:06.4]} 49... Rf4
{[%clk 0:00:06.9]} 50. Bh3 {[%clk 0:00:06.9]} 50... Rf2 {[%clk 0:00:06.3]} 51.
Bg4 {[%clk 0:00:06.7]} 51... Rf4 {[%clk 0:00:06.6]} 52. Bh3 {[%clk 0:00:06.1]}
52... g4 {[%clk 0:00:07]} 53. Bg2 {[%clk 0:00:06]} 53... Rf2 {[%clk 0:00:07]}
54. Bd5 {[%clk 0:00:05.9]} 54... g3 {[%clk 0:00:07.1]} 55. Kb1 {[%clk
0:00:05.9]} 55... g2 {[%clk 0:00:07]} 56. Bxg2 {[%clk 0:00:06.8]} 56... Rxg2
{[%clk 0:00:07.1]} 57. a4 {[%clk 0:00:07.7]} 57... Kxe6 {[%clk 0:00:07.1]} 58.
Ka2 {[%clk 0:00:08.3]} 58... Kd5 {[%clk 0:00:07.3]} 59. Ka3 {[%clk 0:00:09.2]}
59... Kc5 {[%clk 0:00:06.6]} 60. Ka2 {[%clk 0:00:09.3]} 60... Kb4 {[%clk
0:00:04]} 61. Kb1 {[%clk 0:00:08.6]} 61... Rg1+ {[%clk 0:00:03.8]} 62. Ka2
{[%clk 0:00:09.5]} 62... b1=Q# {[%clk 0:00:03]} 0-1

[Event "Late-Titled-Tuesday-Blitz-July-09-2024"]
[Site "Chess.com"]
[Date "2024.07.09"]
[Round "1"]
[White "Seppppppy"]
[Black "ManMish2"]
[Result "1-0"]
[WhiteElo "2285"]
[BlackElo "2591"]
[TimeControl "180+1"]
[EndTime "14:08:36 PDT"]
[Termination "Seppppppy won by resignation"]

1. e4 {[%clk 0:02:57.9]} 1... e5 {[%clk 0:02:59.4]} 2. Nf3 {[%clk 0:02:58.1]}
2... Nc6 {[%clk 0:02:59.5]} 3. Bc4 {[%clk 0:02:55.1]} 3... Nf6 {[%clk
0:02:58.7]} 4. d4 {[%clk 0:02:53.5]} 4... exd4 {[%clk 0:02:58.1]} 5. O-O {[%clk
0:02:53.5]} 5... Nxe4 {[%clk 0:02:54.9]} 6. Re1 {[%clk 0:02:53.7]} 6... d5
{[%clk 0:02:54.8]} 7. Bxd5 {[%clk 0:02:54.3]} 7... Qxd5 {[%clk 0:02:55]} 8. Nc3
{[%clk 0:02:54.7]} 8... Qh5 {[%clk 0:02:54.7]} 9. Nxe4 {[%clk 0:02:55.2]} 9...
Be7 {[%clk 0:02:54.3]} 10. Bg5 {[%clk 0:02:47.9]} 10... Bg4 {[%clk 0:02:54]} 11.
Bxe7 {[%clk 0:02:30.4]} 11... Nxe7 {[%clk 0:02:43.6]} 12. Qxd4 {[%clk
0:02:30.4]} 12... Bxf3 {[%clk 0:02:30.9]} 13. Qxg7 {[%clk 0:01:37.6]} 13...
O-O-O {[%clk 0:02:02.1]} 14. Ng3 {[%clk 0:01:27.5]} 14... Qc5 {[%clk 0:01:03.8]}
15. Qxf7 {[%clk 0:01:27.4]} 15... Nc6 {[%clk 0:00:51.4]} 16. Qxf3 {[%clk
0:01:20.5]} 16... Rhf8 {[%clk 0:00:42]} 17. Qg4+ {[%clk 0:01:15.8]} 17... Kb8
{[%clk 0:00:41.5]} 18. Ne4 {[%clk 0:00:57.1]} 18... Qxc2 {[%clk 0:00:39.6]} 19.
Rec1 {[%clk 0:00:57.5]} 19... Qd3 {[%clk 0:00:16.3]} 20. Rxc6 {[%clk 0:00:29.6]}
20... bxc6 {[%clk 0:00:14.9]} 21. Nc5 {[%clk 0:00:29.5]} 21... Qd4 {[%clk
0:00:05.5]} 22. Qxd4 {[%clk 0:00:29.2]} 22... Rxd4 {[%clk 0:00:06.4]} 23. Ne6
{[%clk 0:00:29.7]} 23... Rfd8 {[%clk 0:00:06.3]} 24. Nxd8 {[%clk 0:00:23.6]}
24... Rxd8 {[%clk 0:00:07.2]} 25. Rc1 {[%clk 0:00:17.9]} 25... Rd2 {[%clk
0:00:07.5]} 26. Rb1 {[%clk 0:00:10.4]} 26... Kc8 {[%clk 0:00:07]} 27. g3 {[%clk
0:00:06.5]} 27... Kd7 {[%clk 0:00:07]} 28. Kg2 {[%clk 0:00:07.4]} 28... Ke6
{[%clk 0:00:07.3]} 29. Kf3 {[%clk 0:00:08.2]} 29... c5 {[%clk 0:00:07.5]} 30.
Ke3 {[%clk 0:00:08.8]} 30... Rc2 {[%clk 0:00:07.6]} 31. a3 {[%clk 0:00:05.1]}
31... c4 {[%clk 0:00:06.2]} 32. Kd4 {[%clk 0:00:05.3]} 32... Kd6 {[%clk
0:00:05.3]} 33. f4 {[%clk 0:00:04.9]} 33... c5+ {[%clk 0:00:04.9]} 34. Ke3
{[%clk 0:00:04.9]} 34... Rxh2 {[%clk 0:00:05.3]} 35. Rc1 {[%clk 0:00:05.2]}
35... Kd5 {[%clk 0:00:04.9]} 36. Rd1+ {[%clk 0:00:05.3]} 36... Kc6 {[%clk
0:00:05.5]} 37. Rb1 {[%clk 0:00:05.6]} 37... Kb5 {[%clk 0:00:04.8]} 38. Ke4
{[%clk 0:00:06.2]} 38... Ka4 {[%clk 0:00:04.7]} 39. Kd5 {[%clk 0:00:06.4]} 39...
Kb3 {[%clk 0:00:05.2]} 40. Rc1 {[%clk 0:00:07]} 40... Rxb2 {[%clk 0:00:03.1]}
41. Rxc4 {[%clk 0:00:07.4]} 41... Rg2 {[%clk 0:00:03.6]} 42. Kxc5 {[%clk
0:00:08]} 42... Rxg3 {[%clk 0:00:04.1]} 43. Rb4+ {[%clk 0:00:08.4]} 43... Kxa3
{[%clk 0:00:04.2]} 44. Rb7 {[%clk 0:00:09.1]} 44... Rc3+ {[%clk 0:00:04.5]} 45.
Kd4 {[%clk 0:00:09.2]} 45... Rc6 {[%clk 0:00:04.3]} 46. Rxa7+ {[%clk 0:00:09.5]}
46... Kb4 {[%clk 0:00:04.8]} 47. Rxh7 {[%clk 0:00:10.2]} 47... Rd6+ {[%clk
0:00:04.4]} 48. Ke5 {[%clk 0:00:10.6]} 48... Rd8 {[%clk 0:00:04.6]} 49. f5
{[%clk 0:00:11.3]} 49... Kc5 {[%clk 0:00:05.1]} 50. f6 {[%clk 0:00:11.1]} 50...
Re8+ {[%clk 0:00:05.5]} 51. Kf5 {[%clk 0:00:11.7]} 51... Kd6 {[%clk 0:00:04.7]}
52. Kg6 {[%clk 0:00:12.3]} 52... Re1 {[%clk 0:00:03.9]} 53. Rh2 {[%clk
0:00:11.7]} 53... Rg1+ {[%clk 0:00:04.2]} 54. Kf7 {[%clk 0:00:12]} 54... Rf1
{[%clk 0:00:04.7]} 55. Rd2+ {[%clk 0:00:12.4]} 55... Ke5 {[%clk 0:00:05.1]} 56.
Re2+ {[%clk 0:00:12]} 56... Kd6 {[%clk 0:00:05]} 57. Kg7 {[%clk 0:00:12.4]}
57... Rg1+ {[%clk 0:00:04.8]} 58. Kf8 {[%clk 0:00:12.7]} 58... Rf1 {[%clk
0:00:05.4]} 59. f7 {[%clk 0:00:13.2]} 59... Kd7 {[%clk 0:00:06.1]} 60. Rd2+
{[%clk 0:00:13.1]} 60... Kc7 {[%clk 0:00:05.4]} 61. Rd5 {[%clk 0:00:11.9]} 61...
Kc6 {[%clk 0:00:04.4]} 62. Rd2 {[%clk 0:00:09.3]} 62... Kc7 {[%clk 0:00:04.5]}
63. Rd4 {[%clk 0:00:07.6]} 63... Rf2 {[%clk 0:00:04.8]} 64. Ke7 {[%clk 0:00:08]}
64... Re2+ {[%clk 0:00:05]} 65. Kf6 {[%clk 0:00:08.6]} 65... Rf2+ {[%clk
0:00:05.5]} 66. Ke6 {[%clk 0:00:09.3]} 66... Re2+ {[%clk 0:00:06.2]} 67. Kf5
{[%clk 0:00:10]} 67... Rf2+ {[%clk 0:00:03.4]} 68. Rf4 {[%clk 0:00:10.5]} 68...
Rxf4+ {[%clk 0:00:03.1]} 69. Kxf4 {[%clk 0:00:11.4]} 1-0

[Event "Late-Titled-Tuesday-Blitz-July-09-2024"]
[Site "Chess.com"]
[Date "2024.07.09"]
[Round "1"]
[White "IamSchrodingersCat"]
[Black "TheAlienParty"]
[Result "1-0"]
[WhiteElo "2656"]
[BlackElo "2334"]
[TimeControl "180+1"]
[EndTime "14:08:37 PDT"]
[Termination "IamSchrodingersCat won on time"]

1. e4 {[%clk 0:03:00.9]} 1... e5 {[%clk 0:02:58.3]} 2. Nf3 {[%clk 0:03:00.4]}
2... Nc6 {[%clk 0:02:57.8]} 3. Bb5 {[%clk 0:02:59.5]} 3... a6 {[%clk 0:02:57.5]}
4. Ba4 {[%clk 0:02:59.2]} 4... d6 {[%clk 0:02:57.1]} 5. c3 {[%clk 0:02:59.1]}
5... Bd7 {[%clk 0:02:56.7]} 6. O-O {[%clk 0:02:57.3]} 6... g5 {[%clk 0:02:56]}
7. d4 {[%clk 0:02:51]} 7... g4 {[%clk 0:02:55.7]} 8. Ne1 {[%clk 0:02:47.2]} 8...
h5 {[%clk 0:02:55.2]} 9. Be3 {[%clk 0:02:20.2]} 9... Bh6 {[%clk 0:02:53.1]} 10.
Nd3 {[%clk 0:02:17.6]} 10... Bxe3 {[%clk 0:02:50.9]} 11. fxe3 {[%clk 0:02:18.5]}
11... Qg5 {[%clk 0:02:50.2]} 12. Qe2 {[%clk 0:02:14.3]} 12... Nh6 {[%clk
0:02:48.6]} 13. Nd2 {[%clk 0:02:06.9]} 13... O-O-O {[%clk 0:02:44.7]} 14. b4
{[%clk 0:02:03.9]} 14... Kb8 {[%clk 0:02:25.9]} 15. Bb3 {[%clk 0:01:59.6]} 15...
Rhf8 {[%clk 0:02:19.9]} 16. a4 {[%clk 0:01:55.6]} 16... Na7 {[%clk 0:02:09.9]}
17. Nc4 {[%clk 0:01:37]} 17... f5 {[%clk 0:02:05.2]} 18. exf5 {[%clk 0:01:28.7]}
18... exd4 {[%clk 0:01:56.4]} 19. exd4 {[%clk 0:01:24.5]} 19... Rde8 {[%clk
0:01:51.6]} 20. Qd2 {[%clk 0:01:18.1]} 20... Qxd2 {[%clk 0:01:50.2]} 21. Nxd2
{[%clk 0:01:19]} 21... Bxf5 {[%clk 0:01:45.4]} 22. Nf4 {[%clk 0:01:13.6]} 22...
h4 {[%clk 0:01:41]} 23. Rae1 {[%clk 0:01:09.5]} 23... Bc8 {[%clk 0:01:17.3]} 24.
Ng6 {[%clk 0:00:50]} 24... Rxf1+ {[%clk 0:01:06.1]} 25. Kxf1 {[%clk 0:00:50.9]}
25... Rxe1+ {[%clk 0:00:57.5]} 26. Kxe1 {[%clk 0:00:51.8]} 26... Nf5 {[%clk
0:00:50.3]} 27. Bc2 {[%clk 0:00:36.5]} 27... h3 {[%clk 0:00:49.5]} 28. gxh3
{[%clk 0:00:28.5]} 28... gxh3 {[%clk 0:00:38.4]} 29. Kf2 {[%clk 0:00:26.8]}
29... c5 {[%clk 0:00:25.1]} 30. bxc5 {[%clk 0:00:19.6]} 30... dxc5 {[%clk
0:00:25.1]} 31. d5 {[%clk 0:00:20.3]} 31... Kc7 {[%clk 0:00:24.8]} 32. Nf4
{[%clk 0:00:15.6]} 32... b5 {[%clk 0:00:22.4]} 33. Nxh3 {[%clk 0:00:13.5]} 33...
bxa4 {[%clk 0:00:17.3]} 34. Bxa4 {[%clk 0:00:14.4]} 34... Nb5 {[%clk 0:00:16.4]}
35. Ne4 {[%clk 0:00:14.5]} 35... Nfd6 {[%clk 0:00:14.4]} 36. Nxd6 {[%clk
0:00:14.2]} 36... Kxd6 {[%clk 0:00:14]} 37. Nf4 {[%clk 0:00:14.5]} 37... Nxc3
{[%clk 0:00:13.3]} 38. Bb3 {[%clk 0:00:15.2]} 38... Bb7 {[%clk 0:00:12.8]} 39.
h4 {[%clk 0:00:13.9]} 39... Nxd5 {[%clk 0:00:10.2]} 40. Ng6 {[%clk 0:00:08.5]}
40... Nf6 {[%clk 0:00:09.1]} 41. Bd1 {[%clk 0:00:07.1]} 41... Bd5 {[%clk
0:00:08.5]} 42. Nf4 {[%clk 0:00:06.9]} 42... Bg8 {[%clk 0:00:08]} 43. h5 {[%clk
0:00:06.8]} 43... Nxh5 {[%clk 0:00:07.6]} 44. Nxh5 {[%clk 0:00:07.7]} 44... Ke5
{[%clk 0:00:07.7]} 45. Ke3 {[%clk 0:00:07.6]} 45... c4 {[%clk 0:00:07.8]} 46.
Nf4 {[%clk 0:00:07.9]} 46... a5 {[%clk 0:00:07.5]} 47. Ne2 {[%clk 0:00:08.4]}
47... Bf7 {[%clk 0:00:07.4]} 48. Nc3 {[%clk 0:00:08.9]} 48... Kd6 {[%clk
0:00:08]} 49. Kd4 {[%clk 0:00:08.8]} 49... Kc6 {[%clk 0:00:08.9]} 50. Ba4+
{[%clk 0:00:08.2]} 50... Kb6 {[%clk 0:00:09]} 51. Ne4 {[%clk 0:00:07.7]} 51...
Bg6 {[%clk 0:00:08.3]} 52. Nd6 {[%clk 0:00:07]} 52... Bd3 {[%clk 0:00:07.3]} 53.
Nf7 {[%clk 0:00:06.5]} 53... Bf1 {[%clk 0:00:07.2]} 54. Ne5 {[%clk 0:00:06.9]}
54... Bd3 {[%clk 0:00:06.8]} 55. Nf3 {[%clk 0:00:07.1]} 55... Bf1 {[%clk
0:00:06.8]} 56. Nd2 {[%clk 0:00:07.6]} 56... Bd3 {[%clk 0:00:07.1]} 57. Nf3
{[%clk 0:00:05.2]} 57... Bf1 {[%clk 0:00:07.1]} 58. Ne5 {[%clk 0:00:05.5]} 58...
Bd3 {[%clk 0:00:07.3]} 59. Be8 {[%clk 0:00:05.8]} 59... Bf1 {[%clk 0:00:07.2]}
60. Nd7+ {[%clk 0:00:06.2]} 60... Kc7 {[%clk 0:00:07]} 61. Nf6 {[%clk
0:00:05.7]} 61... Kb6 {[%clk 0:00:07.1]} 62. Nd5+ {[%clk 0:00:06]} 62... Kb7
{[%clk 0:00:05.8]} 63. Kc5 {[%clk 0:00:05.5]} 63... a4 {[%clk 0:00:05.8]} 64.
Bxa4 {[%clk 0:00:04.7]} 64... Kc8 {[%clk 0:00:05.1]} 65. Kd6 {[%clk 0:00:02.6]}
65... Kd8 {[%clk 0:00:05.1]} 66. Bd7 {[%clk 0:00:02.2]} 66... c3 {[%clk
0:00:02.2]} 67. Nc7 {[%clk 0:00:02.7]} 1-0

[Event "Late-Titled-Tuesday-Blitz-July-09-2024"]
[Site "Chess.com"]
[Date "2024.07.09"]
[Round "1"]
[White "WildTricks"]
[Black "Defenstrator"]
[Result "1-0"]
[WhiteElo "2708"]
[BlackElo "2387"]
[TimeControl "180+1"]
[EndTime "14:08:39 PDT"]
[Termination "WildTricks won by checkmate"]

1. d4 {[%clk 0:03:00.9]} 1... c6 {[%clk 0:02:59.8]} 2. c4 {[%clk 0:03:00.4]}
2... d5 {[%clk 0:03:00.4]} 3. Nf3 {[%clk 0:02:59.7]} 3... Nf6 {[%clk 0:03:01.3]}
4. Nc3 {[%clk 0:02:59.4]} 4... e6 {[%clk 0:03:01.8]} 5. e3 {[%clk 0:02:59.3]}
5... Nbd7 {[%clk 0:02:59.1]} 6. Bd3 {[%clk 0:02:59.5]} 6... dxc4 {[%clk
0:02:59.2]} 7. Bxc4 {[%clk 0:02:59.4]} 7... b5 {[%clk 0:03:00]} 8. Bd3 {[%clk
0:03:00]} 8... a6 {[%clk 0:02:57.5]} 9. O-O {[%clk 0:03:00.1]} 9... c5 {[%clk
0:02:55]} 10. Qe2 {[%clk 0:02:55.9]} 10... Bb7 {[%clk 0:02:47.9]} 11. e4 {[%clk
0:02:54.8]} 11... cxd4 {[%clk 0:02:45.5]} 12. Nxd4 {[%clk 0:02:55.7]} 12... Nc5
{[%clk 0:02:44.4]} 13. Rd1 {[%clk 0:02:46.5]} 13... Qc7 {[%clk 0:02:20.2]} 14.
Bc2 {[%clk 0:02:28.6]} 14... b4 {[%clk 0:02:17.9]} 15. Na4 {[%clk 0:02:26.9]}
15... Ncxe4 {[%clk 0:02:16.2]} 16. Be3 {[%clk 0:02:20.4]} 16... Bd6 {[%clk
0:02:14.7]} 17. h3 {[%clk 0:02:11]} 17... O-O {[%clk 0:02:03.4]} 18. Rac1 {[%clk
0:02:09.7]} 18... Qa5 {[%clk 0:02:01.4]} 19. Bb3 {[%clk 0:00:59.4]} 19... Ng5
{[%clk 0:01:44.9]} 20. Nc6 {[%clk 0:00:43.4]} 20... Bxc6 {[%clk 0:01:41]} 21.
Rxc6 {[%clk 0:00:44.3]} 21... Qe5 {[%clk 0:01:41.7]} 22. f4 {[%clk 0:00:42.5]}
22... Qe4 {[%clk 0:01:20.4]} 23. Rcxd6 {[%clk 0:00:37.3]} 23... Nxh3+ {[%clk
0:01:08.4]} 24. gxh3 {[%clk 0:00:36.7]} 24... Rac8 {[%clk 0:01:03.3]} 25. R6d4
{[%clk 0:00:29.1]} 25... Qf5 {[%clk 0:01:03.1]} 26. Qg2 {[%clk 0:00:28.1]} 26...
e5 {[%clk 0:00:51.8]} 27. Rxb4 {[%clk 0:00:21.5]} 27... a5 {[%clk 0:00:45.4]}
28. Rb5 {[%clk 0:00:21.3]} 28... Qh5 {[%clk 0:00:38.5]} 29. Rxe5 {[%clk
0:00:19.6]} 29... Qh4 {[%clk 0:00:36.1]} 30. Rg5 {[%clk 0:00:16.6]} 30... g6
{[%clk 0:00:33]} 31. Qg3 {[%clk 0:00:14.7]} 31... Qh6 {[%clk 0:00:31.6]} 32. Bd4
{[%clk 0:00:12.9]} 32... Nh5 {[%clk 0:00:31]} 33. Qg4 {[%clk 0:00:12.9]} 33...
Rfe8 {[%clk 0:00:25.6]} 34. Rxh5 {[%clk 0:00:12.9]} 34... Qxh5 {[%clk
0:00:21.1]} 35. Qxh5 {[%clk 0:00:13.2]} 35... gxh5 {[%clk 0:00:22]} 36. Kf2
{[%clk 0:00:12.1]} 36... Re4 {[%clk 0:00:22.2]} 37. Rg1+ {[%clk 0:00:11.5]}
37... Kf8 {[%clk 0:00:22.6]} 38. Be5 {[%clk 0:00:11]} 38... f6 {[%clk
0:00:21.1]} 39. Bd6+ {[%clk 0:00:09.7]} 39... Ke8 {[%clk 0:00:21.7]} 40. Rg8+
{[%clk 0:00:09.4]} 40... Kd7 {[%clk 0:00:22.6]} 41. Nb6+ {[%clk 0:00:08.8]}
41... Kxd6 {[%clk 0:00:22.3]} 42. Nxc8+ {[%clk 0:00:09.5]} 42... Kc7 {[%clk
0:00:23.2]} 43. Rh8 {[%clk 0:00:08.8]} 43... Rxf4+ {[%clk 0:00:23.3]} 44. Ke3
{[%clk 0:00:09.4]} 44... Rh4 {[%clk 0:00:23.7]} 45. Ne7 {[%clk 0:00:09.5]} 45...
Rxh3+ {[%clk 0:00:24]} 46. Kf4 {[%clk 0:00:10.1]} 46... Rh2 {[%clk 0:00:23.5]}
47. Nd5+ {[%clk 0:00:10.4]} 47... Kd6 {[%clk 0:00:23.7]} 48. Nxf6 {[%clk
0:00:10.5]} 48... Rf2+ {[%clk 0:00:21.5]} 49. Kg5 {[%clk 0:00:10.1]} 49... Rxb2
{[%clk 0:00:21.5]} 50. Rxh7 {[%clk 0:00:09.9]} 50... a4 {[%clk 0:00:19]} 51. Bg8
{[%clk 0:00:10.4]} 51... Rb5+ {[%clk 0:00:16.8]} 52. Kf4 {[%clk 0:00:08.9]}
52... Rb2 {[%clk 0:00:16.2]} 53. Rd7+ {[%clk 0:00:08.9]} 53... Kc6 {[%clk
0:00:16.4]} 54. Ra7 {[%clk 0:00:08.7]} 54... Rb4+ {[%clk 0:00:14.5]} 55. Kg5
{[%clk 0:00:08.5]} 55... h4 {[%clk 0:00:15.1]} 56. Bd5+ {[%clk 0:00:07.1]} 56...
Kb6 {[%clk 0:00:15.4]} 57. Rb7+ {[%clk 0:00:07.3]} 57... Kc5 {[%clk 0:00:16.2]}
58. Rxb4 {[%clk 0:00:07.9]} 58... Kxb4 {[%clk 0:00:16.7]} 59. Kxh4 {[%clk
0:00:08.4]} 59... Kc5 {[%clk 0:00:16.8]} 60. Bg8 {[%clk 0:00:09.3]} 60... Kd4
{[%clk 0:00:17.3]} 61. Kg5 {[%clk 0:00:10.2]} 61... Kc3 {[%clk 0:00:18.2]} 62.
Nd7 {[%clk 0:00:10.5]} 62... Kb4 {[%clk 0:00:18.8]} 63. Kf6 {[%clk 0:00:11.2]}
63... Ka3 {[%clk 0:00:19.7]} 64. Ke7 {[%clk 0:00:12.1]} 64... Kb2 {[%clk
0:00:20.2]} 65. Kd6 {[%clk 0:00:12.7]} 65... Ka3 {[%clk 0:00:20.9]} 66. Kc5
{[%clk 0:00:13.4]} 66... Kb2 {[%clk 0:00:21.8]} 67. Kb4 {[%clk 0:00:14.1]} 67...
a3 {[%clk 0:00:22.5]} 68. Ka4 {[%clk 0:00:14.6]} 68... Kb1 {[%clk 0:00:22.2]}
69. Kxa3 {[%clk 0:00:15.5]} 69... Ka1 {[%clk 0:00:23.1]} 70. Kb4 {[%clk
0:00:15.7]} 70... Kb2 {[%clk 0:00:23.6]} 71. a4 {[%clk 0:00:16.6]} 71... Ka1
{[%clk 0:00:23.8]} 72. a5 {[%clk 0:00:17.5]} 72... Kb2 {[%clk 0:00:24.7]} 73. a6
{[%clk 0:00:18.4]} 73... Kc1 {[%clk 0:00:25.4]} 74. a7 {[%clk 0:00:19.3]} 74...
Kb2 {[%clk 0:00:26.3]} 75. a8=Q {[%clk 0:00:19.8]} 75... Kb1 {[%clk 0:00:27.2]}
76. Qh1+ {[%clk 0:00:19.4]} 76... Kb2 {[%clk 0:00:28]} 77. Qg2+ {[%clk
0:00:19.1]} 77... Ka1 {[%clk 0:00:28.6]} 78. Qa2# {[%clk 0:00:19]} 1-0